bitfinex/quotes_ETHUSD_20250810
["timestamp","ask_amount","ask_price","bid_price","bid_amount"]
[1754835101204,8.97456483,4190.9,4190.8,0.2234601]
[1754835101407,8.92656483,4190.9,4190.8,0.2234601]
[1754835101710,11.31268714,4190.9,4190.8,0.2234601]
[1754835102100,11.53533808,4190.9,4190.8,0.2234601]
[1754835102300,4.87161577,4190.9,4190.8,0.2234601]
[1754835102505,7.93463326,4190.9,4190.8,0.6726601]
[1754835102727,4.13563326,4190.9,4190.8,0.6726601]
[1754835102913,6.9602,4190.9,4190.8,0.6726601]
[1754835104735,3.9602,4190.9,4190.8,0.6726601]
[1754835106546,0.1612,4190.9,4190.8,3.05883934]
[1754835106841,0.1612,4190.9,4190.8,3.53183934]
[1754835106842,3.9592,4190.9,4190.8,3.53183934]
[1754835107011,3.84,4190.9,4190.8,3.53183934]
[1754835111308,0.042,4190.9,4190.8,3.53183934]
[1754835111639,0.042,4190.9,4190.8,4.15943321]
[1754835111840,0.042,4190.9,4190.8,4.25477142]
[1754835114129,0.042,4190.9,4190.8,8.04977142]
[1754835114523,0.042,4190.9,4190.8,8.59977142]
[1754835114747,1e-08,4190.9,4190.8,8.59977142]
[1754835117815,1e-08,4191.2,4191.1,2.38600844]
[1754835118015,1e-08,4191.2,4191.1,8.34293489]
[1754835118215,1e-08,4191.2,4191.1,9.24983489]
[1754835118417,1e-08,4191.7,4191.6,0.55]
[1754835118744,1e-08,4191.8,4191.6,7.88294115]
[1754835118910,1e-08,4191.8,4191.7,1.25033798]
[1754835119114,1e-08,4191.8,4191.7,5.09290489]
[1754835119317,1e-08,4191.8,4191.7,5.21210489]
[1754835126221,1e-08,4191.9,4191.8,2.93561]
[1754835126424,1e-08,4191.9,4191.8,9.16924159]
[1754835126740,1e-08,4191.9,4191.8,12.16924159]
[1754835126935,1e-08,4192.9,4192.8,2.38504102]
[1754835127248,1e-08,4192.9,4192.8,6.94850112]
[1754835127449,1e-08,4192.9,4192.8,8.90796288]
[1754835128634,1e-08,4192.9,4192.8,7.88786288]
[1754835129046,1e-08,4192.9,4192.8,8.35796288]
[1754835130671,1e-08,4192.9,4192.8,4.56796288]
[1754835130824,1e-08,4192.9,4192.8,4.09786288]
[1754835131026,1e-08,4192.9,4192.8,4.59181329]
[1754835131727,1e-08,4192.9,4192.8,5.11796288]
[1754835134747,1e-08,4192.9,4192.8,4.64786288]
[1754835134975,0.00200001,4192.9,4192.8,4.64786288]
[1754835135188,0.00200001,4192.9,4192.8,5.11796288]
[1754835137249,0.00200001,4192.9,4192.8,4.64786288]
[1754835137752,0.00200001,4192.9,4192.8,3.66106288]
[1754835138068,0.00200001,4192.9,4192.8,3.65975507]
[1754835138241,0.00200001,4192.9,4192.8,4.12775507]
[1754835138837,0.00200001,4192.9,4192.8,4.59405507]
[1754835139270,0.00200001,4192.9,4192.8,5.16790548]
[1754835139472,0.00200001,4192.9,4192.8,5.14405507]
[1754835141065,0.00200001,4192.9,4192.8,4.67775507]
[1754835142368,0.00200001,4192.9,4192.8,3.65975507]
[1754835142859,0.00200001,4192.9,4192.8,4.12775507]
[1754835143674,0.00200001,4192.9,4192.8,7.44375507]
[1754835144105,0.00200001,4192.9,4192.8,3.65975507]
[1754835144311,0.00200001,4192.9,4192.8,7.44275507]
[1754835145205,0.00200001,4192.9,4192.8,6.50939331]
[1754835145514,0.00200001,4192.9,4192.8,6.97739331]
[1754835145689,0.00200001,4192.9,4192.8,6.50939331]
[1754835146214,0.00200001,4192.9,4192.8,2.72639331]
[1754835146418,0.45500001,4192.9,4192.8,2.72639331]
[1754835146617,0.45500001,4192.9,4192.8,2.60719331]
[1754835146819,0.45500001,4192.9,4192.8,0.22215229]
[1754835147118,2.38511249,4192.7,4191.6,0.001]
[1754835147420,0.96701125,4192.6,4192.2,2.38537223]
[1754835147624,3.51157978,4192.8,4192.3,0.22296253]
[1754835147834,3.51157978,4192.8,4192.4,0.22296253]
[1754835147835,2.88621168,4192.5,4192.4,0.22296253]
[1754835148134,9.71068334,4192.5,4192.4,0.22296253]
[1754835148334,3.501,4192.5,4192.4,0.22296253]
[1754835148632,0.453,4192.5,4192.4,0.22296253]
[1754835148823,0.501,4192.5,4192.4,0.22296253]
[1754835149200,0.9293,4192.5,4192.4,0.22296253]
[1754835150011,0.00200001,4192.9,4192.4,0.22296253]
[1754835150012,3.00200001,4192.9,4192.4,0.22296253]
[1754835150307,0.453,4192.8,4192.5,0.22296253]
[1754835150505,0.453,4192.8,4192.0,2.38545348]
[1754835150506,0.501,4192.7,4192.6,0.22296253]
[1754835150852,0.501,4192.7,4192.6,0.2228729]
[1754835150853,1.802,4192.7,4192.6,0.2228729]
[1754835151016,4.18714549,4192.7,4192.6,0.2228729]
[1754835151512,1.754,4192.7,4192.6,0.2228729]
[1754835151712,3.00200001,4192.9,4192.6,0.2228729]
[1754835151899,7.23600001,4192.9,4192.7,2.60796927]
[1754835152098,0.00200001,4192.9,4192.8,2.60786266]
[1754835152339,0.00200001,4192.9,4192.8,3.07586266]
[1754835152549,0.00200001,4192.9,4192.8,3.66859364]
[1754835153052,0.00200001,4192.9,4192.8,4.13489364]
[1754835153803,0.00200001,4192.9,4192.8,3.20059364]
[1754835154008,0.00200001,4192.9,4192.8,3.66859364]
[1754835154348,0.00200001,4192.9,4192.8,3.20059364]
[1754835154649,0.00200001,4192.9,4192.8,3.07586266]
[1754835154818,0.00200001,4192.9,4192.8,3.54216266]
[1754835155523,0.00200001,4192.9,4192.8,2.60786266]
[1754835156421,0.00200001,4192.9,4192.8,3.07586266]
[1754835156624,0.00200001,4192.9,4192.8,2.60786266]
[1754835157050,0.00200001,4192.9,4192.8,2.72706266]
[1754835157542,0.00200001,4192.9,4192.8,3.19506266]
[1754835158132,0.00200001,4192.9,4192.8,2.72706266]
[1754835158536,0.00200001,4192.9,4192.8,3.19506266]
[1754835159119,0.00200001,4192.9,4192.8,3.66136266]
[1754835159315,0.00200001,4192.9,4192.8,4.26601364]
[1754835159625,0.00200001,4192.9,4192.8,4.26601291]
[1754835159826,0.00200001,4192.9,4192.8,2.72706193]
[1754835161259,0.00200001,4192.9,4192.8,3.19506193]
[1754835161757,0.00200001,4192.9,4192.8,2.72706193]
[1754835163032,0.00200001,4192.9,4192.8,0.34202091]
[1754835163237,0.00200001,4192.9,4192.8,0.22282091]
[1754835163435,0.00200001,4192.9,4192.8,2.60786193]
[1754835164252,0.00200001,4192.9,4192.8,0.22282091]
[1754835164446,0.00200001,4192.9,4192.8,2.60786193]
[1754835169966,0.00200001,4192.9,4192.8,3.06636193]
[1754835170171,0.00200001,4192.9,4192.8,4.24060279]
[1754835172439,0.00200001,4192.9,4192.8,3.32940279]
[1754835172666,0.00200001,4192.9,4192.8,2.72706193]
[1754835172964,0.00200001,4192.9,4192.8,3.18556193]
[1754835173168,0.00200001,4192.9,4192.8,3.63826193]
[1754835177660,0.00200001,4192.9,4192.8,3.66311234]
[1754835178073,0.00200001,4192.9,4192.8,3.63926193]
[1754835178230,0.00200001,4192.9,4192.8,4.61930279]
[1754835179742,0.00200001,4192.9,4192.8,4.16660279]
[1754835180269,0.00200001,4192.9,4192.8,4.61930279]
[1754835180455,0.00200001,4192.9,4192.8,8.39330279]
[1754835183176,0.00200001,4192.9,4192.8,7.94060279]
[1754835185144,0.00200001,4192.9,4192.8,8.39330279]
[1754835187055,1e-08,4192.9,4192.8,8.39330279]
[1754835188472,1e-08,4192.9,4192.8,8.94330279]
[1754835190290,1e-08,4192.9,4192.8,11.94330279]
[1754835193292,1e-08,4193.9,4193.4,0.55]
[1754835193469,1e-08,4193.9,4193.8,5.93447231]
[1754835193673,1e-08,4193.9,4193.8,9.92729322]
[1754835193897,1e-08,4193.9,4193.8,10.83849322]
[1754835198171,1e-08,4193.9,4193.8,10.83819593]
[1754835198370,1e-08,4193.9,4193.8,12.54291757]
[1754835198970,1e-08,4193.9,4193.8,8.77291757]
[1754835199174,1e-08,4193.9,4193.8,12.54091757]
[1754835199368,1e-08,4193.9,4193.8,8.32019573]
[1754835199583,1e-08,4193.9,4193.8,12.07019573]
[1754835200299,1e-08,4193.9,4193.8,4.31169573]
[1754835200496,0.49320001,4193.9,4193.8,6.37397409]
[1754835201912,0.49320001,4193.9,4193.8,3.98950178]
[1754835202107,0.49320001,4193.9,4193.8,2.60697409]
[1754835203385,0.49320001,4193.9,4193.8,2.72617409]
[1754835203590,0.54120001,4193.9,4193.8,0.34170178]
[1754835204629,0.54120001,4193.9,4193.8,2.72617409]
[1754835204915,0.54120001,4193.9,4193.8,0.34170178]
[1754835205084,0.54120001,4193.9,4193.8,2.72617409]
[1754835205284,0.49320001,4193.9,4193.8,2.72617409]
[1754835205786,0.49320001,4193.9,4193.8,0.34170178]
[1754835206183,0.54120001,4193.9,4193.8,0.34170178]
[1754835206383,0.54120001,4193.9,4193.8,2.72617409]
[1754835206594,0.49320001,4193.9,4193.8,2.72617409]
[1754835207505,0.49320001,4193.9,4193.8,0.34170178]
[1754835207718,1e-08,4193.9,4193.8,2.60697409]
[1754835207927,1e-08,4193.9,4193.8,2.72617409]
[1754835208093,1e-08,4193.9,4193.8,0.34170178]
[1754835208287,1e-08,4193.9,4193.8,2.72617409]
[1754835210022,0.54120001,4193.9,4193.8,0.34170178]
[1754835210219,0.49320001,4193.9,4193.8,0.34170178]
[1754835210384,1e-08,4193.9,4193.8,2.72617409]
[1754835211221,1e-08,4193.9,4193.8,5.13189984]
[1754835211717,1e-08,4193.9,4193.8,8.13189984]
[1754835213817,1e-08,4193.9,4193.8,11.89589984]
[1754835214227,1e-08,4193.9,4193.8,11.41329984]
[1754835214421,1e-08,4193.9,4193.8,11.89489984]
[1754835215004,1e-08,4193.9,4193.8,8.13189984]
[1754835215325,1e-08,4193.9,4193.8,11.89489984]
[1754835217293,1e-08,4193.9,4193.8,11.41229984]
[1754835217497,1e-08,4193.9,4193.8,11.89489984]
[1754835221130,0.4932,4195.4,4195.3,2.38361976]
[1754835221131,0.48520001,4195.4,4195.3,2.38361976]
[1754835221303,0.53320001,4195.4,4195.3,2.60612154]
[1754835221503,0.53320001,4195.4,4195.3,2.72532154]
[1754835222606,0.48520001,4195.4,4195.3,2.72532154]
[1754835224336,0.04,4195.9,4195.3,0.34170178]
[1754835224632,0.04,4195.9,4195.7,2.38335362]
[1754835224633,0.62582,4195.8,4195.7,2.38335362]
[1754835224801,1.11902,4195.8,4195.7,2.6058554]
[1754835225006,1.11902,4195.8,4195.7,2.7250554]
[1754835225615,1.11902,4195.8,4195.7,0.34170178]
[1754835225804,1.16702,4195.8,4195.7,0.34170178]
[1754835226133,1.11902,4195.8,4195.7,0.34170178]
[1754835226438,1.11902,4195.8,4195.7,2.7250943]
[1754835226638,0.4932,4195.8,4195.7,2.7250943]
[1754835227746,2.16150784,4198.1,4195.8,2.38333571]
[1754835227905,2.16150784,4198.1,4197.7,2.38225695]
[1754835227906,0.85258825,4197.8,4197.7,2.38225695]
[1754835228255,0.4637,4197.8,4197.7,0.2226896]
[1754835228544,0.67995405,4197.8,4196.0,0.55]
[1754835228738,3.759,4197.7,4197.2,2.50173558]
[1754835228909,0.4637,4197.6,4197.4,2.38242721]
[1754835229104,0.4637,4197.6,4197.5,2.60485193]
[1754835229317,4.2217,4197.6,4197.5,2.72405193]
[1754835229637,4.18417,4197.6,4197.5,2.72405193]
[1754835229939,0.42617,4197.6,4197.5,2.72405193]
[1754835230115,0.04,4197.9,4197.8,2.3822002]
[1754835230321,3.798,4197.9,4197.8,2.60468168]
[1754835230721,3.798,4197.9,4197.5,2.38236601]
[1754835231021,0.1192,4197.7,4197.0,0.1192]
[1754835231343,0.1192,4197.1,4196.2,0.1192]
[1754835231555,0.5829,4197.1,4197.0,2.38265427]
[1754835231848,4.3889,4197.1,4196.9,2.38270545]
[1754835232145,0.4637,4197.0,4196.9,2.38269785]
[1754835232351,0.4637,4197.0,4196.9,2.60471594]
[1754835232517,0.90259,4197.0,4196.9,2.60471594]
[1754835234616,4.65959,4197.0,4196.9,2.60471594]
[1754835234934,4.65959,4197.0,4196.9,2.38269785]
[1754835235143,0.90259,4197.0,4196.9,2.38269785]
[1754835235324,4.2207,4197.0,4196.9,2.38269785]
[1754835235528,3.757,4197.0,4196.9,2.38269785]
[1754835235939,4.2207,4197.0,4196.9,2.38269785]
[1754835236729,3.757,4197.0,4196.9,2.38269785]
[1754835237721,0.1192,4197.1,4197.0,2.38265427]
[1754835237932,3.8752,4197.1,4197.0,2.38265427]
[1754835238131,4.31389,4197.1,4197.0,2.38265427]
[1754835238632,4.77759,4197.1,4197.0,2.38265427]
[1754835239251,0.43869,4197.1,4197.0,2.38265427]
[1754835239453,3.756,4197.1,4197.0,2.6047784]
[1754835239839,0.1192,4197.3,4197.2,2.38254074]
[1754835240059,0.1192,4197.3,4197.2,2.60466487]
[1754835240562,0.1192,4197.3,4197.2,3.05656487]
[1754835240563,3.8752,4197.3,4197.2,3.05656487]
[1754835240763,3.756,4197.3,4197.2,3.05656487]
[1754835240965,3.756,4197.3,4197.2,2.60466487]
[1754835241271,0.1192,4197.7,4197.5,2.38237045]
[1754835241595,9.86972,4197.6,4197.5,2.60449458]
[1754835241736,9.86972,4197.6,4197.5,2.60452747]
[1754835242069,9.86972,4197.6,4197.5,0.22215702]
[1754835242070,10.33342,4197.6,4197.5,0.22215702]
[1754835242278,10.38142,4197.6,4196.7,0.1192]
[1754835242442,1.513762,4197.5,4197.4,2.38242721]
[1754835242863,1.632962,4197.5,4197.4,2.60459052]
[1754835243176,4.925262,4197.5,4197.4,2.60459052]
[1754835243852,6.23292,4197.6,4197.5,2.38237045]
[1754835244052,5.8412,4197.6,4197.5,2.60453376]
[1754835244252,9.477,4197.6,4197.5,3.17563376]
[1754835244651,5.722,4197.6,4197.5,3.17560766]
[1754835244853,9.477,4197.6,4197.5,3.17560766]
[1754835245161,5.722,4197.6,4197.5,3.17560766]
[1754835245371,5.722,4197.6,4197.5,3.65120766]
[1754835245747,9.477,4197.6,4197.5,3.65120766]
[1754835246471,9.477,4197.6,4197.5,3.17560766]
[1754835246980,9.477,4197.6,4197.5,3.65120766]
[1754835247482,9.477,4197.6,4197.5,3.42907045]
[1754835247786,9.477,4197.6,4197.5,3.65116573]
[1754835247987,9.476,4197.6,4197.5,3.65116573]
[1754835249479,5.722,4197.6,4197.5,3.65116573]
[1754835249667,9.476,4197.6,4197.5,3.65116573]
[1754835249976,0.04,4197.9,4197.8,2.3822002]
[1754835250186,0.04,4197.9,4197.8,2.72349548]
[1754835250370,0.04,4197.9,4197.8,3.55561748]
[1754835250574,3.754,4197.9,4197.8,1.26879528]
[1754835250791,3.754,4197.9,4197.8,3.83821094]
[1754835250992,0.04,4198.9,4198.8,2.38163284]
[1754835251345,3.794,4198.9,4198.7,2.50087859]
[1754835251684,3.794,4198.9,4198.7,2.5008757]
[1754835251890,3.744,4198.9,4198.7,2.5008757]
[1754835252295,0.4637,4198.8,4198.7,0.1192]
[1754835252492,0.4637,4198.8,4198.7,0.34123722]
[1754835252857,0.5829,4198.8,4198.7,0.22205044]
[1754835253188,0.5829,4198.8,4198.0,2.50128221]
[1754835253189,2.96453507,4198.8,4198.1,2.38198717]
[1754835253377,2.96453507,4198.8,4198.0,0.1192]
[1754835253378,0.5829,4198.8,4198.3,2.3819054]
[1754835253688,1.17680356,4198.7,4198.4,0.22204041]
[1754835253892,3.753,4198.6,4198.5,0.22204041]
[1754835254691,4.2167,4198.6,4198.5,0.22204041]
[1754835256065,2.50084746,4198.8,4198.5,0.22204041]
[1754835256261,0.4637,4198.6,4198.0,0.1192]
[1754835256469,2.84546275,4198.6,4198.1,0.22220547]
[1754835256664,6.89397879,4198.5,4198.2,0.22220547]
[1754835256874,4.2157,4198.5,4198.3,0.22220547]
[1754835257080,4.2157,4198.5,4198.4,0.22220547]
[1754835257280,6.59750302,4198.5,4198.4,0.22220547]
[1754835257486,4.3349,4198.5,4198.4,0.22220547]
[1754835257653,7.62653784,4198.5,4198.4,0.22220547]
[1754835258097,10.67453784,4198.5,4198.4,0.22220547]
[1754835258304,3.0,4198.4,4197.7,0.1192]
[1754835258597,4.03561616,4198.4,4197.7,0.1192]
[1754835258766,0.4751,4198.3,4197.7,0.1192]
[1754835258971,0.1192,4197.8,4197.2,2.38253838]
[1754835259173,3.752,4197.7,4197.3,2.38247918]
[1754835259391,3.752,4197.7,4197.1,0.1192]
[1754835259571,3.752,4197.7,4197.3,2.38243683]
[1754835259956,3.752,4197.7,4197.1,0.1192]
[1754835260156,4.2271,4197.7,4197.1,0.1192]
[1754835260355,4.2271,4197.7,4197.1,2.50179173]
[1754835260570,4.2271,4197.7,4197.2,0.22241618]
[1754835260571,3.4751,4197.6,4197.2,0.22241618]
[1754835260809,0.1192,4197.3,4197.2,0.22241618]
[1754835261005,3.8702,4197.3,4197.2,0.22241618]
[1754835261208,3.8702,4197.3,4197.2,0.22242404]
[1754835261364,3.8702,4197.3,4197.2,0.22242436]
[1754835261767,3.83041348,4198.2,4197.2,1.14572436]
[1754835262068,0.1192,4197.9,4197.4,2.38242721]
[1754835262265,0.1192,4197.9,4197.6,2.38229142]
[1754835262576,3.751,4197.8,4197.6,2.38229142]
[1754835262771,3.751,4197.8,4197.3,0.1192]
[1754835262978,3.751,4197.8,4197.4,0.22241548]
[1754835262979,0.1192,4197.6,4197.4,0.22241548]
[1754835263206,0.1192,4197.6,4197.5,0.22241548]
[1754835263392,0.1192,4197.6,4197.5,2.60478593]
[1754835263702,1.12175135,4198.1,4197.7,2.38223531]
[1754835263901,0.9559794,4198.0,4197.8,0.22241548]
[1754835264075,0.9559794,4198.0,4197.9,0.22241548]
[1754835264278,7.7069794,4198.0,4197.9,0.22241548]
[1754835264864,8.1820794,4198.0,4197.9,0.22241548]
[1754835265063,8.1820794,4198.0,4197.3,2.38247127]
[1754835265256,0.1192,4197.7,4197.4,2.60489872]
[1754835265499,0.1192,4197.7,4197.5,0.22247963]
[1754835265705,0.1192,4197.7,4197.6,0.22251471]
[1754835265914,3.8702,4197.7,4197.6,0.22251471]
[1754835266086,0.1192,4197.7,4197.6,0.22251471]
[1754835266276,3.8702,4197.7,4197.6,0.22251471]
[1754835267075,0.1192,4197.7,4197.6,0.22251471]
[1754835267371,0.1192,4197.7,4197.6,0.66171471]
[1754835267776,0.1192,4197.7,4197.6,3.04402841]
[1754835268083,0.1192,4197.7,4197.6,0.66171471]
[1754835268084,3.8702,4197.7,4197.6,0.66171471]
[1754835268464,3.75,4197.7,4197.6,3.52812565]
[1754835268869,0.1192,4198.1,4197.8,2.38214459]
[1754835269077,3.0,4198.2,4197.9,0.22251471]
[1754835269394,3.75,4198.1,4198.0,0.66171471]
[1754835269596,3.0,4198.2,4198.0,0.66171471]
[1754835269772,3.75,4198.1,4198.0,2.82125638]
[1754835270092,3.75,4198.1,4198.0,3.04398745]
[1754835270292,5.8392,4198.3,4198.1,2.38199726]
[1754835270592,8.8392,4198.3,4198.2,0.22270075]
[1754835270773,12.5892,4198.3,4198.2,0.22270075]
[1754835270963,8.8392,4198.3,4198.2,0.22270075]
[1754835271164,8.7892,4198.3,4198.2,0.22270075]
[1754835271365,12.5392,4198.3,4198.2,0.22270075]
[1754835272598,8.7892,4198.3,4198.2,0.22270075]
[1754835272801,12.5392,4198.3,4198.2,0.22270075]
[1754835273007,14.26822,4198.3,4198.2,0.22270075]
[1754835273211,16.65013649,4198.3,4198.2,0.22270075]
[1754835273495,2.38203028,4198.1,4197.4,2.38239306]
[1754835273700,0.1192,4197.9,4197.5,0.22282057]
[1754835273898,3.1192,4197.9,4197.6,0.22282057]
[1754835274108,3.1192,4197.9,4197.1,3.30586845]
[1754835274109,2.8573553,4197.8,4197.7,0.22282057]
[1754835274302,9.6063553,4197.8,4197.7,0.22282057]
[1754835274502,9.7255553,4197.8,4197.7,0.22282057]
[1754835274797,7.3433,4197.8,4197.7,0.22282057]
[1754835275002,9.7255002,4197.8,4197.7,0.22282057]
[1754835275205,10.33539535,4197.8,4197.7,0.22282057]
[1754835275725,9.86029535,4197.8,4197.7,0.22282057]
[1754835276526,10.33539535,4197.8,4197.7,0.22282057]
[1754835276824,2.38253366,4197.3,4196.9,0.1202]
[1754835276983,0.60989515,4197.8,4197.0,0.22279028]
[1754835277182,0.1192,4197.2,4197.1,0.66199028]
[1754835277413,3.8682,4197.2,4197.1,0.66199028]
[1754835277807,3.8682,4197.2,4197.1,0.22279028]
[1754835278003,3.8682,4197.2,4197.1,0.2227446]
[1754835278818,3.8682,4197.2,4197.1,0.6619446]
[1754835279218,3.8682,4197.2,4197.1,0.2227446]
[1754835279384,0.1192,4197.2,4197.1,0.2227446]
[1754835279584,3.8682,4197.2,4197.1,0.6619446]
[1754835279989,3.8682,4197.2,4197.1,0.2227446]
[1754835281281,7.11266074,4197.2,4197.1,0.2227446]
[1754835281528,10.11266074,4197.2,4197.1,0.2227446]
[1754835281702,10.11266074,4197.2,4196.9,0.001]
[1754835281703,2.38265427,4197.0,4196.9,0.001]
[1754835282029,39.13065427,4197.0,4196.9,0.001]
[1754835282213,6.748,4197.0,4196.9,0.001]
[1754835282416,3.1192,4197.0,4196.9,1.14700778]
[1754835282599,3.8672,4197.0,4196.9,1.14700778]
[1754835283230,3.748,4197.0,4196.9,3.64891882]
[1754835283523,3.748,4197.0,4196.9,1.26620778]
[1754835283725,3.748,4197.0,4196.9,0.66290778]
[1754835284024,3.748,4197.0,4196.9,1.14700778]
[1754835284409,3.748,4197.0,4196.9,0.66290778]
[1754835284619,3.748,4197.0,4196.9,0.22370778]
[1754835284992,7.13472,4197.0,4196.9,0.22370778]
[1754835285231,6.24447427,4197.0,4196.9,0.22370778]
[1754835285524,19.99247427,4197.0,4196.9,0.22370778]
[1754835285733,36.24447427,4197.0,4196.9,0.22370778]
[1754835286023,9.99247427,4197.0,4196.9,0.22370778]
[1754835286529,39.99247427,4197.0,4196.9,0.22370778]
[1754835286729,40.04047427,4197.0,4196.9,0.22370778]
[1754835286940,40.04047427,4197.0,4196.9,0.001]
[1754835288123,36.80594682,4197.0,4196.9,0.001]
[1754835288290,40.50594682,4197.0,4196.9,0.001]
[1754835289617,40.50574155,4197.0,4196.9,0.001]
[1754835290011,36.75774155,4197.0,4196.9,0.001]
[1754835290184,40.03064155,4197.0,4196.9,0.001]
[1754835292320,39.51737427,4197.0,4196.9,0.001]
[1754835293019,39.51637427,4197.0,4196.9,0.001]
[1754835296222,35.76937427,4197.0,4196.9,0.001]
[1754835296413,39.51637427,4197.0,4196.9,0.001]
[1754835296613,35.76937427,4197.0,4196.9,0.001]
[1754835296909,39.51637427,4197.0,4196.9,0.001]
[1754835298828,9.51637427,4197.0,4196.9,0.001]
[1754835299635,39.99097427,4197.0,4196.9,0.001]
[1754835300000,39.51537427,4197.0,4196.9,0.001]
[1754835300245,40.50299463,4197.0,4196.9,0.001]
[1754835301255,41.05299463,4197.0,4196.9,0.001]
[1754835301611,41.32374411,4197.0,4196.9,0.001]
[1754835302020,42.09899513,4197.0,4196.9,0.001]
[1754835302338,0.55,4196.8,4196.6,0.04]
[1754835302635,49.7980246,4196.7,4196.6,0.04]
[1754835302827,41.19006136,4196.7,4196.6,0.04]
[1754835303239,2.93305173,4196.3,4196.2,0.001]
[1754835303431,45.62380121,4196.3,4196.2,0.001]
[1754835303741,47.20252512,4196.3,4196.2,0.001]
[1754835304128,47.3842294,4196.3,4196.2,0.001]
[1754835304325,47.25052512,4196.3,4196.2,0.001]
[1754835304645,48.02590924,4196.3,4196.2,0.001]
[1754835304822,47.97790924,4196.3,4196.2,0.001]
[1754835305710,47.20249891,4196.3,4196.2,1e-08]
[1754835305916,48.02584795,4196.3,4196.2,1e-08]
[1754835306242,47.38412973,4196.3,4196.2,1e-08]
[1754835306610,47.33612973,4196.3,4196.2,1e-08]
[1754835307218,43.59012973,4196.3,4196.2,1e-08]
[1754835307433,47.9772376,4196.3,4196.2,1e-08]
[1754835307745,44.2312344,4196.3,4196.2,1e-08]
[1754835308049,47.33512973,4196.3,4196.2,1e-08]
[1754835308252,51.79845827,4196.3,4196.2,1e-08]
[1754835308558,51.89392127,4196.3,4196.2,1e-08]
[1754835309044,46.82213141,4196.3,4196.2,1e-08]
[1754835309243,43.19633141,4196.3,4196.2,0.44130001]
[1754835309423,46.84586841,4196.3,4196.2,0.44130001]
[1754835309623,42.55086841,4196.3,4196.2,0.44130001]
[1754835309823,12.4316564,4196.3,4196.2,0.92520001]
[1754835310024,11.96925173,4196.3,4196.2,0.92520001]
[1754835310333,41.96925173,4196.3,4196.2,1e-08]
[1754835310519,41.22425173,4196.3,4196.2,0.44130001]
[1754835310719,44.96925173,4196.3,4196.2,0.92520001]
[1754835311663,41.22425173,4196.3,4196.2,0.92520001]
[1754835311872,44.96925173,4196.3,4196.2,0.92520001]
[1754835313714,44.96825173,4196.3,4196.2,0.92520001]
[1754835314235,47.28529241,4196.3,4196.2,0.92520001]
[1754835314936,47.28529241,4196.3,4196.2,0.44130001]
[1754835315165,17.28529241,4196.3,4196.2,0.44130001]
[1754835316654,17.79852115,4196.3,4196.2,1e-08]
[1754835316872,2.38316532,4196.1,4195.7,0.4413]
[1754835317075,6.12716532,4196.1,4195.7,0.4413]
[1754835317246,6.64039406,4196.1,4195.6,0.041]
[1754835317447,6.64039406,4196.1,4196.0,0.4339]
[1754835317652,6.12716532,4196.1,4196.0,0.4339]
[1754835317875,7.90949738,4196.1,4196.0,0.4339]
[1754835319543,7.90949738,4196.1,4196.0,0.9047]
[1754835320145,4.16549738,4196.1,4196.0,0.9047]
[1754835320345,1.78233206,4196.1,4196.0,0.9047]
[1754835320545,7.90849738,4196.1,4196.0,0.9047]
[1754835321439,5.52533206,4196.1,4196.0,0.9047]
[1754835322445,7.90849738,4196.1,4196.0,0.9047]
[1754835322659,1.78233206,4196.1,4196.0,0.9047]
[1754835322859,7.90849738,4196.1,4196.0,0.9047]
[1754835323043,7.90849738,4196.1,4196.0,0.4339]
[1754835323877,8.42197502,4196.1,4196.0,0.4339]
[1754835324286,7.90849738,4196.1,4196.0,0.4339]
[1754835324659,6.03888759,4196.1,4196.0,0.4339]
[1754835324990,5.52433206,4196.1,4196.0,0.9047]
[1754835325181,8.42113354,4196.1,4196.0,0.9047]
[1754835325583,7.90749738,4196.1,4196.0,0.9047]
[1754835326192,8.4212387,4196.1,4196.0,0.9047]
[1754835326584,8.4212387,4196.1,4196.0,0.4339]
[1754835327462,6.03807338,4196.1,4196.0,0.4339]
[1754835327896,8.4212387,4196.1,4196.0,0.4339]
[1754835328291,4.25574132,4196.1,4196.0,1.1276275]
[1754835328491,6.742,4196.1,4196.0,1.1276275]
[1754835328896,9.12516532,4196.1,4196.0,1.1276275]
[1754835329299,7.25513415,4196.1,4196.0,1.1276275]
[1754835330404,3.51413415,4196.1,4196.0,1.1276275]
[1754835330593,6.741,4196.1,4196.0,1.1276275]
[1754835330782,7.25513415,4196.1,4196.0,1.1276275]
[1754835333573,0.002,4196.2,4196.1,2.38316532]
[1754835333574,0.1212,4196.2,4196.1,2.38316532]
[1754835333773,3.8612,4196.2,4196.1,2.60609282]
[1754835333974,3.8612,4196.2,4196.1,3.50979282]
[1754835334869,3.8612,4196.2,4196.1,1.12647484]
[1754835335388,3.8612,4196.2,4196.1,3.50964016]
[1754835335770,0.1212,4196.2,4196.1,3.50964016]
[1754835335976,0.002,4196.2,4196.1,4.21823102]
[1754835336292,0.002,4197.1,4197.0,2.38265427]
[1754835336507,3.741,4197.1,4197.0,2.60542911]
[1754835336673,3.741,4197.1,4197.0,3.50912911]
[1754835337210,0.002,4197.1,4197.0,3.62832911]
[1754835337512,3.741,4197.1,4197.0,3.62832911]
[1754835338278,3.741,4197.1,4197.0,3.50912911]
[1754835338473,0.002,4197.1,4197.0,3.50912911]
[1754835338708,3.741,4197.1,4197.0,3.62832911]
[1754835339941,3.74,4197.1,4197.0,4.22943649]
[1754835340245,1e-08,4197.1,4197.0,4.22943649]
[1754835341158,1e-08,4197.1,4197.0,4.77943649]
[1754835341302,3.738,4198.0,4197.3,0.55]
[1754835341502,0.1192,4199.0,4198.5,2.38180033]
[1754835341721,0.1192,4199.0,4197.9,2.38209635]
[1754835341722,0.1192,4199.0,4198.6,0.9037]
[1754835341937,3.738,4198.8,4198.7,2.38168957]
[1754835342111,6.738,4198.8,4198.7,2.38168957]
[1754835342317,3.738,4198.8,4198.7,3.28538957]
[1754835342510,3.738,4198.8,4198.7,3.25928255]
[1754835343332,0.1192,4199.0,4198.8,2.38163284]
[1754835343630,3.777,4198.9,4198.8,3.28533284]
[1754835343801,0.04,4198.9,4198.8,3.28533284]
[1754835344003,3.777,4198.9,4198.8,3.28533284]
[1754835344431,3.777,4198.9,4198.4,0.4329]
[1754835344622,0.3777,4198.8,4198.5,2.38179134]
[1754835344824,0.3777,4198.8,4198.5,0.4329]